fUST/lending_fUST_20240617
["ID","MTS","AMOUNT","RATE_DAILY","PERIOD"]
[329685718,1718572254880,-1260.66,0.00015178,2]
[329685719,1718572254898,-499.28155554,0.00015178,2]
[329685720,1718572254918,-500.0,0.00015178,2]
[329685721,1718572254933,-2615.15,0.00015178,2]
[329685722,1718572254950,-500.0,0.00015178,2]
[329685723,1718572254964,-500.0,0.00015179,2]
[329685724,1718572255005,-500.0,0.00015179,2]
[329685725,1718572255048,-500.0,0.00015179,2]
[329685726,1718572255068,-501.99,0.00015179,2]
[329685727,1718572255106,-500.0,0.00015179,2]
[329685728,1718572255131,-664.25,0.00015179,2]
[329685729,1718572255160,-500.0,0.00015179,2]
[329685730,1718572255185,-500.0,0.00015179,2]
[329685731,1718572255201,-500.0,0.00015179,2]
[329685732,1718572255218,-586.05,0.00015179,2]
[329685733,1718572255243,-684.86,0.00015179,2]
[329685734,1718572255272,-294.77567397,0.00015179,2]
[329685735,1718572255287,-500.0,0.00015179,2]
[329685736,1718572255304,-500.0,0.00015179,2]
[329685737,1718572255317,-982.14,0.00015179,2]
[329685738,1718572255348,-8358.35,0.00015179,2]
[329685739,1718572255552,-1318.1,0.00015179,2]
[329685740,1718572255575,-500.0,0.00015179,2]
[329685741,1718572255591,-500.0,0.00015179,2]
[329685742,1718572255602,-615.2,0.00015179,2]
[329685743,1718572255614,-1020.36,0.00015179,2]
[329685744,1718572255631,-275.48295176,0.00015179,2]
[329685745,1718572255642,-500.0,0.00015179,2]
[329685746,1718572255653,-500.0,0.00015179,2]
[329685747,1718572255686,-500.0,0.00015179,2]
[329685748,1718572255701,-2095.62,0.00015179,2]
[329685749,1718572255716,-592.29,0.00015179,2]
[329685750,1718572255735,-603.43,0.00015179,2]
[329685751,1718572255749,-588.47,0.00015179,2]
[329685752,1718572255761,-500.0,0.00015179,2]
[329685753,1718572255772,-500.0,0.00015179,2]
[329685754,1718572255784,-6275.44,0.00015179,2]
[329685755,1718572255803,-699.0,0.00015179,2]
[329685756,1718572255843,-597.8,0.0001518,2]
[329685757,1718572255862,-500.0,0.0001518,2]
[329685758,1718572255874,-594.74,0.0001518,2]
[329685759,1718572255888,-500.0,0.0001518,2]
[329685760,1718572255902,-500.0,0.0001518,2]
[329685761,1718572255922,-411.730672,0.00015397,2]
[329685762,1718572255956,-153.0,0.00015416,2]
[329685763,1718572255977,-153.0,0.00015416,2]
[329685764,1718572256004,-153.0,0.00015416,2]
[329685765,1718572256024,-306.0,0.00015418,2]
[329685766,1718572256039,-306.0,0.00015418,2]
[329685767,1718572256050,-500.0,0.00015452,2]
[329685768,1718572256079,-793.88,0.00015452,2]
[329685769,1718572256097,-3175.41,0.00015452,2]
[329685770,1718572256119,-500.0,0.00015452,2]
[329685771,1718572256161,-653.18,0.00015452,2]
[329685772,1718572256184,-733.18,0.00015452,2]
[329685773,1718572256197,-500.0,0.00015452,2]
[329685774,1718572256209,-5302.04,0.00015452,2]
[329685775,1718572256227,-13299.31,0.00015452,2]
[329685776,1718572256254,-1260.66,0.00015452,2]
[329685777,1718572256267,-2615.15,0.00015452,2]
[329685778,1718572256281,-500.0,0.00015453,2]
[329685779,1718572256300,-500.0,0.00015453,2]
[329685780,1718572256326,-501.99,0.00015453,2]
[329685781,1718572256342,-500.0,0.00015453,2]
[329685782,1718572256358,-664.25,0.00015453,2]
[329685783,1718572256372,-500.0,0.00015453,2]
[329685784,1718572256384,-500.0,0.00015453,2]
[329685785,1718572256396,-586.05,0.00015453,2]
[329685786,1718572256408,-684.86,0.00015453,2]
[329685787,1718572256438,-982.14,0.00015453,2]
[329685788,1718572256451,-8358.35,0.00015453,2]
[329685789,1718572256464,-1318.1,0.00015453,2]
[329685790,1718572256481,-500.0,0.00015453,2]
[329685791,1718572256492,-615.2,0.00015453,2]
[329685792,1718572256505,-1020.36,0.00015453,2]
[329685793,1718572256518,-500.0,0.00015453,2]
[329685794,1718572256535,-2095.62,0.00015453,2]
[329685795,1718572256548,-592.29,0.00015453,2]
[329685796,1718572256572,-603.43,0.00015453,2]
[329685797,1718572256601,-500.0,0.00015453,2]
[329685798,1718572256624,-500.0,0.00015453,2]
[329685799,1718572256681,-6275.44,0.00015453,2]
[329685800,1718572256704,-699.0,0.00015453,2]
[329685801,1718572256729,-597.8,0.00015454,2]
[329685802,1718572256747,-594.74,0.00015454,2]
[329685803,1718572256766,-500.0,0.00015454,2]
[329685804,1718572256789,-500.0,0.00015454,2]
[329685805,1718572256840,-420.0,0.00015489,2]
[329685806,1718572256852,-160.0,0.00015612,2]
[329685807,1718572256869,-793.88,0.00015726,2]
[329685808,1718572256881,-3175.41,0.00015726,2]
[329685809,1718572256897,-653.18,0.00015726,2]
[329685810,1718572256910,-733.18,0.00015726,2]
[329685811,1718572256922,-5302.04,0.00015726,2]
[329685812,1718572256938,-13299.31,0.00015726,2]
[329685813,1718572256956,-1260.66,0.00015726,2]
[329685814,1718572256973,-2615.15,0.00015726,2]
[329685815,1718572257001,-113.64208035,0.00015727,2]
[329685823,1718572351656,20000.0,0.00016822,13]
[329685825,1718572514355,151.01510151,0.00021463,30]
[329685922,1718573437263,-760.4875951,0.00013699,2]
[329685923,1718573437275,-200.838215,0.00013699,2]
[329685924,1718573437286,-161.10257069,0.00013981,2]
[329685925,1718573437298,-574.06954787,0.00013981,2]
[329685927,1718573437310,-300.0,0.0001408,2]
[329685928,1718573437320,-147.7774116,0.0001408,2]
[329685952,1718573440749,-152.2225884,0.0001408,2]
[329685953,1718573440766,-500.0,0.0001408,2]
[329685954,1718573440952,-500.0,0.00014081,2]
[329685955,1718573440975,-548.81660986,0.00014081,2]
[329685956,1718573440989,-500.0,0.00014081,2]
[329685957,1718573441011,-500.0,0.00014081,2]
[329685958,1718573441031,-500.0,0.00014081,2]
[329685959,1718573441079,-501.49,0.00014081,2]
[329685960,1718573441090,-500.0,0.00014081,2]
[329685961,1718573441108,-630.87,0.00014081,2]
[329685962,1718573441129,-425.01,0.00014081,2]
[329685963,1718573441152,-500.0,0.00014081,2]
[329685964,1718573441163,-518.43939545,0.00014081,2]
[329685965,1718573441176,-66.90060455,0.00014081,2]
[329685966,1718573441188,-500.0,0.00014081,2]
[329685967,1718573441212,-638.65,0.00014081,2]
[329685968,1718573441232,-780.89,0.00014081,2]
[329685969,1718573441242,-500.0,0.00014081,2]
[329685970,1718573441268,-666.5,0.00014081,2]
[329685971,1718573441283,-1224.85,0.00014081,2]
[329685972,1718573441296,-2582.88,0.00014081,2]
[329685973,1718573441314,-865.65,0.00014081,2]
[329685974,1718573441324,-500.0,0.00014081,2]
[329685975,1718573441334,-500.0,0.00014081,2]
[329685976,1718573441345,-500.0,0.00014081,2]
[329685977,1718573441355,-1878.17,0.00014081,2]
[329685978,1718573441365,-565.57,0.00014081,2]
[329685979,1718573441375,-500.0,0.00014081,2]
[329685980,1718573441385,-12535.29,0.00014081,2]
[329685981,1718573441396,-456.27127201,0.00014081,2]
[329685982,1718573441407,-1378.17,0.00014081,2]
[329685983,1718573441420,-500.0,0.00014081,2]
[329685984,1718573441434,-500.0,0.00014081,2]
[329685985,1718573441449,-4483.26,0.00014081,2]
[329685986,1718573441473,-5558.72,0.00014081,2]
[329685987,1718573441484,-54.83824436,0.00014081,2]
[329685988,1718573441509,-445.16175564,0.00014081,2]
[329685989,1718573441533,-1465.57,0.00014081,2]
[329685990,1718573441559,-50.6172704,0.00014081,2]
[329685991,1718573441585,-497.7627296,0.00014081,2]
[329685992,1718573441600,-654.29,0.00014081,2]
[329685993,1718573441624,-500.0,0.00014081,2]
[329685994,1718573441635,-577.57,0.00014081,2]
[329685995,1718573441696,-628.83503317,0.00014081,2]
[329685996,1718573441740,-500.0,0.00014081,2]
[329685997,1718573441751,-500.0,0.00014081,2]
[329685998,1718573441766,-500.0,0.00014081,2]
[329685999,1718573441777,-500.0,0.00014081,2]
[329686000,1718573441788,-500.0,0.00014082,2]
[329686001,1718573441799,-500.0,0.00014082,2]
[329686002,1718573441824,-500.0,0.00014082,2]
[329686003,1718573441835,-500.0,0.00014082,2]
[329686004,1718573441874,-500.0,0.00014082,2]
[329686005,1718573441897,-649.25,0.00014082,2]
[329686006,1718573441914,-571.06,0.00014082,2]
[329686007,1718573441944,-500.0,0.00014082,2]
[329686008,1718573441957,-500.0,0.00014082,2]
[329686009,1718573441970,-7424.78,0.00014082,2]
[329686010,1718573441982,-500.0,0.00014082,2]
[329686011,1718573441996,-573.35,0.00014082,2]
[329686012,1718573442025,-500.0,0.00014355,2]
[329686013,1718573442037,-500.0,0.00014355,2]
[329686014,1718573442056,-500.0,0.00014355,2]
[329686015,1718573442069,-501.49,0.00014355,2]
[329686016,1718573442089,-500.0,0.00014355,2]
[329686017,1718573442120,-630.87,0.00014355,2]
[329686018,1718573442138,-458.14579698,0.00014355,2]
[329686019,1718573442176,-585.34,0.00014355,2]
[329686020,1718573442207,-500.0,0.00014355,2]
[329686021,1718573442238,-638.65,0.00014355,2]
[329686022,1718573442264,-780.89,0.00014355,2]
[329686023,1718573442281,-500.0,0.00014355,2]
[329686024,1718573442293,-666.5,0.00014355,2]
[329686025,1718573442304,-1224.85,0.00014355,2]
[329686026,1718573442324,-2582.88,0.00014355,2]
[329686027,1718573442336,-865.65,0.00014355,2]
[329686028,1718573442347,-500.0,0.00014355,2]
[329686029,1718573442362,-500.0,0.00014355,2]
[329686030,1718573442375,-1878.17,0.00014355,2]
[329686031,1718573442389,-565.57,0.00014355,2]
[329686032,1718573442403,-500.0,0.00014355,2]
[329686033,1718573442420,-12535.29,0.00014355,2]
[329686034,1718573442431,-1378.17,0.00014355,2]
[329686035,1718573442454,-500.0,0.00014355,2]
[329686036,1718573442465,-500.0,0.00014355,2]
[329686037,1718573442479,-5010.62285932,0.00014355,2]
[329686089,1718573447567,-186.91255128,0.0001408,2]
[329686090,1718573447581,-548.09714068,0.00014355,2]
[329686091,1718573447592,-4483.26,0.00014355,2]
[329686092,1718573447603,-500.0,0.00014355,2]
[329686093,1718573447614,-1465.57,0.00014355,2]
[329686094,1718573447633,-548.38,0.00014355,2]
[329686095,1718573447644,-654.29,0.00014355,2]
[329686096,1718573447655,-500.0,0.00014355,2]
[329686097,1718573447665,-577.57,0.00014355,2]
[329686098,1718573447684,-500.0,0.00014355,2]
[329686099,1718573447695,-176.11893782,0.00014355,2]
[329686100,1718573447724,-323.88106218,0.00014355,2]
[329686101,1718573447740,-500.0,0.00014355,2]
[329686104,1718573447756,-500.0,0.00014355,2]
[329686105,1718573447773,-500.0,0.00014356,2]
[329686106,1718573447784,-500.0,0.00014356,2]
[329686107,1718573447794,-500.0,0.00014356,2]
[329686108,1718573447804,-649.25,0.00014356,2]
[329686109,1718573447815,-571.06,0.00014356,2]
[329686110,1718573447828,-500.0,0.00014356,2]
[329686111,1718573447856,-500.0,0.00014356,2]
[329686112,1718573447866,-7424.78,0.00014356,2]
[329686113,1718573447878,-573.35,0.00014356,2]
[329686114,1718573447889,-161.10257068,0.00014392,2]
[329686115,1718573447910,-500.0,0.00014629,2]
[329686116,1718573447923,-501.49,0.00014629,2]
[329686117,1718573447934,-500.0,0.00014629,2]
[329686118,1718573447944,-630.87,0.00014629,2]
[329686119,1718573447958,-585.34,0.00014629,2]
[329686120,1718573447971,-638.65,0.00014629,2]
[329686121,1718573447983,-780.89,0.00014629,2]
[329686122,1718573447994,-217.24,0.00014629,2]
[329686123,1718573448006,-666.5,0.00014629,2]
[329686124,1718573448017,-1224.85,0.00014629,2]
[329686125,1718573448027,-2582.88,0.00014629,2]
[329686126,1718573448052,-865.65,0.00014629,2]
[329686127,1718573448067,-500.0,0.00014629,2]
[329686128,1718573448078,-500.0,0.00014629,2]
[329686129,1718573448090,-1878.17,0.00014629,2]
[329686130,1718573448102,-565.57,0.00014629,2]
[329686131,1718573448114,-12535.29,0.00014629,2]
[329686132,1718573448125,-1378.17,0.00014629,2]
[329686133,1718573448140,-500.0,0.00014629,2]
[329686134,1718573448155,-500.0,0.00014629,2]
[329686135,1718573448168,-5558.72,0.00014629,2]
[329686136,1718573448179,-4483.26,0.00014629,2]
[329686137,1718573448190,-500.0,0.00014629,2]
[329686138,1718573448201,-1465.57,0.00014629,2]
[329686139,1718573448212,-548.38,0.00014629,2]
[329686140,1718573448224,-654.29,0.00014629,2]
[329686141,1718573448235,-500.0,0.00014629,2]
[329686142,1718573448246,-577.57,0.00014629,2]
[329686143,1718573448260,-500.0,0.00014629,2]
[329686144,1718573448271,-500.0,0.00014629,2]
[329686145,1718573448283,-500.0,0.0001463,2]
[329686146,1718573448294,-500.0,0.0001463,2]
[329686147,1718573448305,-427.74037649,0.0001463,2]
[329686148,1718573448318,-649.25,0.0001463,2]
[329686149,1718573448330,-571.06,0.0001463,2]
[329686150,1718573448341,-500.0,0.0001463,2]
[329686151,1718573448351,-7424.78,0.0001463,2]
[329686152,1718573448365,-573.35,0.0001463,2]
[329686153,1718573448376,-161.10257068,0.00014803,2]
[329686154,1718573448389,-500.0,0.00014903,2]
[329686155,1718573448403,-501.49,0.00014903,2]
[329686157,1718573448415,-500.0,0.00014903,2]
[329686158,1718573448429,-630.87,0.00014903,2]
[329686159,1718573448439,-585.34,0.00014903,2]
[329686160,1718573448451,-638.65,0.00014903,2]
[329686161,1718573448464,-780.89,0.00014903,2]
[329686162,1718573448474,-666.5,0.00014903,2]
[329686163,1718573448485,-1224.85,0.00014903,2]
[329686164,1718573448499,-2582.88,0.00014903,2]
[329686165,1718573448520,-865.65,0.00014903,2]
[329686166,1718573448533,-500.0,0.00014903,2]
[329686167,1718573448560,-500.0,0.00014903,2]
[329686168,1718573448574,-1878.17,0.00014903,2]
[329686169,1718573448589,-565.57,0.00014903,2]
[329686170,1718573448603,-12535.29,0.00014903,2]
[329686171,1718573448615,-1378.17,0.00014903,2]
[329686172,1718573448626,-500.0,0.00014903,2]
[329686173,1718573448638,-500.0,0.00014903,2]
[329686174,1718573448653,-4483.26,0.00014903,2]
[329686175,1718573448685,-5558.72,0.00014903,2]
[329686176,1718573448707,-500.0,0.00014903,2]
[329686177,1718573448718,-1465.57,0.00014903,2]
[329686178,1718573448728,-548.38,0.00014903,2]
[329686179,1718573448741,-654.29,0.00014903,2]
[329686180,1718573448753,-500.0,0.00014903,2]
[329686181,1718573448764,-577.57,0.00014903,2]
[329686182,1718573448781,-500.0,0.00014903,2]
[329686183,1718573448807,-500.0,0.00014903,2]
[329686184,1718573448818,-500.0,0.00014904,2]
[329686185,1718573448828,-519.06,0.00014904,2]
[329686186,1718573448842,-649.25,0.00014904,2]
[329686187,1718573448856,-571.06,0.00014904,2]
[329686188,1718573448872,-500.0,0.00014904,2]
[329686189,1718573448883,-7424.78,0.00014904,2]
[329686190,1718573448899,-573.35,0.00014904,2]
[329686191,1718573448910,-500.0,0.00015177,2]
[329686192,1718573448928,-501.49,0.00015177,2]
[329686193,1718573448945,-500.0,0.00015177,2]
[329686194,1718573448969,-630.87,0.00015177,2]
[329686195,1718573448984,-585.34,0.00015177,2]
[329686196,1718573449006,-638.65,0.00015177,2]
[329686197,1718573449023,-780.89,0.00015177,2]
[329686198,1718573449034,-151.0,0.00015177,2]
[329686199,1718573449052,-151.0,0.00015177,2]
[329686200,1718573449086,-151.0,0.00015177,2]
[329686201,1718573449101,-666.5,0.00015177,2]
[329686202,1718573449114,-1224.85,0.00015177,2]
[329686203,1718573449128,-151.0,0.00015177,2]
[329686204,1718573449152,-2582.88,0.00015177,2]
[329686205,1718573449171,-151.0,0.00015177,2]
[329686206,1718573449182,-865.65,0.00015177,2]
[329686207,1718573449216,-151.0,0.00015177,2]
[329686208,1718573449245,-151.0,0.00015177,2]
[329686209,1718573449257,-500.0,0.00015177,2]
[329686210,1718573449274,-151.0,0.00015177,2]
[329686211,1718573449308,-151.0,0.00015177,2]
[329686212,1718573449321,-151.0,0.00015177,2]
[329686213,1718573449334,-1878.17,0.00015177,2]
[329686214,1718573449361,-565.57,0.00015177,2]
[329686215,1718573449379,-151.0,0.00015177,2]
[329686216,1718573449410,-6266.70442958,0.00015177,2]
[329686217,1718573449537,-6268.58557042,0.00015177,2]
[329686218,1718573449548,-1378.17,0.00015177,2]
[329686219,1718573449568,-500.0,0.00015177,2]
[329686220,1718573449592,-500.0,0.00015177,2]
[329686221,1718573449604,-4483.26,0.00015177,2]
[329686222,1718573449626,-5558.72,0.00015177,2]
[329686223,1718573449637,-151.0,0.00015177,2]
[329686224,1718573449648,-500.0,0.00015177,2]
[329686225,1718573449659,-1465.57,0.00015177,2]
[329686226,1718573449678,-548.38,0.00015177,2]
[329686227,1718573449699,-151.0,0.00015177,2]
[329686228,1718573449711,-151.0,0.00015177,2]
[329686229,1718573449724,-654.29,0.00015177,2]
[329686230,1718573449757,-500.0,0.00015177,2]
[329686231,1718573449770,-577.57,0.00015177,2]
[329686232,1718573449782,-151.0,0.00015177,2]
[329686233,1718573449800,-500.0,0.00015177,2]
[329686234,1718573449816,-500.0,0.00015177,2]
[329686235,1718573449827,-500.0,0.00015178,2]
[329686236,1718573449844,-151.0,0.00015178,2]
[329686237,1718573449861,-151.0,0.00015178,2]
[329686238,1718573449873,-151.0,0.00015178,2]
[329686239,1718573449885,-649.25,0.00015178,2]
[329686240,1718573449899,-571.06,0.00015178,2]
[329686241,1718573449916,-151.0,0.00015178,2]
[329686242,1718573449927,-151.0,0.00015178,2]
[329686243,1718573449945,-151.0,0.00015178,2]
[329686244,1718573449963,-500.0,0.00015178,2]
[329686245,1718573449977,-151.0,0.00015178,2]
[329686246,1718573449994,-151.0,0.00015178,2]
[329686247,1718573450006,-153.513805,0.00015178,2]
[329686248,1718573450019,-151.0,0.00015178,2]
[329686249,1718573450041,-151.0,0.00015178,2]
[329686250,1718573450058,-151.0,0.00015178,2]
[329686251,1718573450070,-151.0,0.00015178,2]
[329686252,1718573450085,-151.0,0.00015178,2]
[329686253,1718573450098,-7424.78,0.00015178,2]
[329686254,1718573450111,-573.35,0.00015178,2]
[329686255,1718573450150,-500.0,0.00015211,2]
[329686256,1718573450164,-399.362084,0.00015397,2]
[329686257,1718573450192,-500.0,0.00015451,2]
[329686258,1718573450213,-501.49,0.00015451,2]
[329686259,1718573450230,-500.0,0.00015451,2]
[329686260,1718573450243,-630.87,0.00015451,2]
[329686261,1718573450256,-585.34,0.00015451,2]
[329686262,1718573450271,-638.65,0.00015451,2]
[329686263,1718573450284,-780.89,0.00015451,2]
[329686264,1718573450301,-151.0,0.00015451,2]
[329686265,1718573450312,-151.0,0.00015451,2]
[329686266,1718573450344,-177.840814,0.00015451,2]
[329686267,1718573450368,-666.5,0.00015451,2]
[329686268,1718573450381,-1224.85,0.00015451,2]
[329686269,1718573450399,-2582.88,0.00015451,2]
[329686270,1718573450411,-151.0,0.00015451,2]
[329686271,1718573450424,-865.65,0.00015451,2]
[329686272,1718573450435,-151.0,0.00015451,2]
[329686273,1718573450583,-151.0,0.00015451,2]
[329686274,1718573450595,-211.14,0.00015451,2]
[329686275,1718573450610,-151.0,0.00015451,2]
[329686276,1718573450627,-159.57116,0.00015451,2]
[329686277,1718573450641,-151.0,0.00015451,2]
[329686278,1718573450653,-1878.17,0.00015451,2]
[329686279,1718573450668,-565.57,0.00015451,2]
[329686280,1718573450681,-151.0,0.00015451,2]
[329686281,1718573450695,-12535.29,0.00015451,2]
[329686282,1718573450708,-1378.17,0.00015451,2]
[329686283,1718573450724,-4483.26,0.00015451,2]
[329686284,1718573450737,-5558.72,0.00015451,2]
[329686285,1718573450754,-151.0,0.00015451,2]
[329686286,1718573450774,-500.0,0.00015451,2]
[329686287,1718573450788,-1465.57,0.00015451,2]
[329686288,1718573450799,-548.38,0.00015451,2]
[329686289,1718573450815,-151.0,0.00015451,2]
[329686290,1718573450830,-151.0,0.00015451,2]
[329686291,1718573450843,-654.29,0.00015451,2]
[329686292,1718573450860,-577.57,0.00015451,2]
[329686293,1718573450884,-151.0,0.00015451,2]
[329686294,1718573450896,-500.0,0.00015451,2]
[329686295,1718573450907,-500.0,0.00015451,2]
[329686296,1718573450920,-500.0,0.00015452,2]
[329686297,1718573450930,-151.0,0.00015452,2]
[329686298,1718573450942,-151.0,0.00015452,2]
[329686299,1718573450956,-151.0,0.00015452,2]
[329686300,1718573450973,-649.25,0.00015452,2]
[329686301,1718573450985,-571.06,0.00015452,2]
[329686302,1718573451018,-151.0,0.00015452,2]
[329686303,1718573451034,-151.0,0.00015452,2]
[329686304,1718573451058,-151.0,0.00015452,2]
[329686305,1718573451077,-500.0,0.00015452,2]
[329686306,1718573451092,-151.0,0.00015452,2]
[329686307,1718573451107,-151.0,0.00015452,2]
[329686308,1718573451120,-245.901792,0.00015452,2]
[329686309,1718573451137,-7424.78,0.00015452,2]
[329686310,1718573451148,-573.35,0.00015452,2]
[329686311,1718573451159,-420.0,0.00015488,2]
[329686312,1718573451170,-151.0,0.00015541,2]
[329686313,1718573451183,-182.014798,0.00015541,2]
[329686314,1718573451196,-151.0,0.00015541,2]
[329686315,1718573451209,-1505.463438,0.00015542,2]
[329686316,1718573451223,-998.04089068,0.00015542,2]
[329686317,1718573451268,-266.52192932,0.00015542,2]
[329686318,1718573451279,-863.5732666,0.00015725,2]
[329686319,1718573451295,-1048.90227704,0.00015725,2]
[329686320,1718573451320,-602.75373846,0.00015725,2]
[329686321,1718573451344,-500.0,0.00015725,2]
[329686322,1718573451355,-272.652777,0.00015725,2]
[329686323,1718573451368,-228.837223,0.00015725,2]
[329686324,1718573451379,-500.0,0.00015725,2]
[329686325,1718573451390,-606.87086253,0.00015725,2]
[329686383,1718573460588,-697.22,0.00014081,2]
[329686384,1718573460601,-697.22,0.00014355,2]
[329686385,1718573460611,-697.22,0.00014629,2]
[329686386,1718573460622,-697.22,0.00014903,2]
[329686387,1718573460636,-697.22,0.00015177,2]
[329686388,1718573460649,-564.39870166,0.00015451,2]
[329686389,1718573460665,-697.22,0.00015451,2]
[329686390,1718573460678,-23.99913747,0.00015725,2]
[329686391,1718573460689,-585.34,0.00015725,2]
[329686392,1718573460701,-638.65,0.00015725,2]
[329686393,1718573460717,-151.0,0.00015725,2]
[329686394,1718573460728,-666.5,0.00015725,2]
[329686395,1718573460741,-1224.85,0.00015725,2]
[329686396,1718573460772,-2582.88,0.00015725,2]
[329686397,1718573460783,-151.0,0.00015725,2]
[329686398,1718573460797,-865.65,0.00015725,2]
[329686399,1718573460808,-151.0,0.00015725,2]
[329686400,1718573460820,-151.0,0.00015725,2]
[329686401,1718573460831,-151.0,0.00015725,2]
[329686402,1718573460856,-151.0,0.00015725,2]
[329686403,1718573460868,-1878.17,0.00015725,2]
[329686404,1718573460879,-565.57,0.00015725,2]
[329686405,1718573460890,-151.0,0.00015725,2]
[329686406,1718573460907,-407.24927708,0.00015725,2]
[329686407,1718573460921,-302.61772616,0.00015725,2]
[329686418,1718574634226,-1976.58294707,0.0001298,2]
[329686420,1718574634239,-222.189693,0.00012981,2]
[329686422,1718574634255,-200.8382153,0.00013699,2]
[329686424,1718574634272,-335.9387255,0.00013699,2]
[329686426,1718574634284,-609.69798977,0.00013977,2]
[329686428,1718574634296,-185.85022718,0.00013977,2]
[329686430,1718574634312,-15.31209661,0.00014075,2]
[329686436,1718574634433,-184.68790339,0.00014075,2]
[329686438,1718574634446,-151.25082208,0.00014076,2]
[329686452,1718574634743,-463.19749651,0.00014076,2]
[329686454,1718574634757,-300.0,0.00014076,2]
[329686455,1718574634772,-500.0,0.00014077,2]
[329686458,1718574634788,-333.0,0.00014077,2]
[329686460,1718574634811,-500.0,0.00014077,2]
[329686461,1718574634842,-500.0,0.00014077,2]
[329686463,1718574634876,-722.86,0.00014077,2]
[329686465,1718574634916,-500.0,0.00014077,2]
[329686467,1718574634929,-500.0,0.00014077,2]
[329686468,1718574634944,-82.84598782,0.00014077,2]
[329686489,1718574640678,-1187.28401218,0.00014077,2]
[329686490,1718574640695,-2557.63,0.00014077,2]
[329686491,1718574640713,-120.98598782,0.00014077,2]
[329686508,1718574647435,-409.45401218,0.00014077,2]
[329686509,1718574647457,-500.0,0.00014077,2]
[329686510,1718574647469,-655.07,0.00014077,2]
[329686511,1718574647480,-500.0,0.00014077,2]
[329686512,1718574647502,-500.0,0.00014077,2]
[329686514,1718574647513,-500.0,0.00014077,2]
[329686516,1718574647523,-358.39376456,0.00014077,2]
[329686538,1718574650192,-534.53623544,0.00014077,2]
[329686539,1718574650214,-500.0,0.00014077,2]
[329686540,1718574650225,-500.0,0.00014077,2]
[329686541,1718574650255,-500.0,0.00014077,2]
[329686542,1718574650271,-752.79,0.00014077,2]
[329686543,1718574650294,-500.0,0.00014077,2]
[329686544,1718574650310,-500.0,0.00014077,2]
[329686545,1718574650323,-624.56,0.00014077,2]
[329686546,1718574650334,-500.0,0.00014077,2]
[329686547,1718574650349,-500.0,0.00014077,2]
[329686548,1718574650368,-1088.47,0.00014077,2]
[329686549,1718574650383,-678.17,0.00014077,2]
[329686550,1718574650394,-500.0,0.00014077,2]
[329686551,1718574650429,-500.0,0.00014077,2]
[329686552,1718574650445,-500.0,0.00014077,2]
[329686553,1718574650457,-2439.91,0.00014077,2]
[329686554,1718574650468,-500.0,0.00014077,2]
[329686555,1718574650483,-500.0,0.00014077,2]
[329686556,1718574650498,-267.5,0.00014077,2]
[329686557,1718574650510,-598.78,0.00014077,2]